[Event "94th Tradewise Hastings Congress"]
[Site "Hastings"]
[Date "2019.01.04"]
[Round "8"]
[White "Ratnesan, Ranesh"]
[Black "Graham, David B"]
[Result "1-0"]
[ECO "D71"]
[WhiteElo "2055"]
[BlackElo "2208"]
[Annotator "NA"]
[PlyCount "129"]
[EventDate "2018.12.28"]
[EventType "swiss"]
[EventCountry "ENG"]
[SourceTitle "playchess.com"]
[Source "ChessBase"]
[SourceQuality "1"]
[TimeControl "40/6000+30:3000+30"]

1. d4 {[%emt 0:00:00]} Nf6 {[%emt 0:00:00]} 2. c4 {[%emt 0:00:00]} g6 {[%emt 0:00:00]} 3. g3 {[%emt 0:00:00]} Bg7 {[%emt 0:00:00]} 4. Bg2 {[%emt 0:00:00]} d5 {[%emt 0:00:08]} 5. cxd5 {[%emt 0:00:50]} Nxd5 {[%emt 0:00:05]} 6. Nc3 {[%emt 0:02:16]} Nxc3 {[%emt 0:00:14]} 7. bxc3 {[%emt 0:00:09]} c5 {[%emt 0:00:33]} 8. e3 {[%emt 0:01:31]} Nc6 {[%emt 0:00:35]} 9. Ne2 {[%emt 0:02:14]} O-O {[%emt 0:00:06]} 10. O-O {[%emt 0:01:08]} Qc7 {[%emt 0:07:32]} 11. Ba3 {[%emt 0:09:42]} cxd4 {[%emt 0:06:13]} 12. cxd4 {[%emt 0:02:01]} Bg4 {[%emt 0:17:33]} 13. h3 {[%emt 0:07:45]} Qa5 {[%emt 0:03:21]} 14. Bc5 {[%emt 0:14:43]} Be6 {[%emt 0:09:03]} 15. Qd3 {[%emt 0:12:33]} Rfd8 {[%emt 0:15:30]} 16. Qc3 {[%emt 0:06:00]} Qxc3 {[%emt 0:09:09]} 17. Nxc3 {[%emt 0:00:09]} Bc4 {[%emt 0:00:25]} 18. Rfd1 {[%emt 0:11:46]} e6 {[%emt 0:02:16]} 19. Rab1 {[%emt 0:02:44]} Rd7 {[%emt 0:05:59]} 20. Rd2 {[%emt 0:09:53]} Rc8 {[%emt 0:05:42]} 21. Ne4 {[%emt 0:02:40]} Rcd8 {[%emt 0:03:44]} 22. Nc3 {[%emt 0:04:25]} Bd5 {[%emt 0:06:35]} 23. Nxd5 {[%emt 0:03:30]} exd5 {[%emt 0:00:04]} 24. Rc2 {[%emt 0:00:18]} Bf8 {[%emt 0:02:26]} 25. Rb5 {[%emt 0:01:46]} Bxc5 {[%emt 0:01:58]} 26. Rcxc5 {[%emt 0:00:35]} Ne7 {[%emt 0:03:22]} 27. h4 {[%emt 0:01:04]} f5 {[%emt 0:00:29]} 28. Rb1 {[%emt 0:02:07]} Kf7 {[%emt 0:00:40]} 29. Bf1 {[%emt 0:00:51]} Rc8 {[%emt 0:02:42]} 30. Rbc1 {[%emt 0:00:48]} Rxc5 {[%emt 0:00:06]} 31. Rxc5 {[%emt 0:00:07]} a6 {[%emt 0:00:24]} 32. a4 {[%emt 0:01:14]} Ke6 {[%emt 0:00:20]} 33. Kg2 {[%emt 0:02:24]} Kd6 {[%emt 0:00:06]} 34. Kf3 {[%emt 0:00:47]} Ng8 {[%emt 0:04:08]} 35. Rc2 {[%emt 0:02:42]} Nf6 {[%emt 0:00:21]} 36. Rb2 {[%emt 0:00:37]} Rc7 {[%emt 0:00:29]} 37. Rb6+ {[%emt 0:01:34]} Ke7 {[%emt 0:00:38]} 38. Be2 {[%emt 0:02:21]} Ne4 {[%emt 0:00:32]} 39. Bd3 {[%emt 0:00:33]} Nd6 {[%emt 0:00:35]} 40. g4 {[%emt 0:03:37]} Rc3 {[%emt 0:02:00]} 41. Bb1 {[%emt 0:05:10]} fxg4+ {[%emt 0:05:13]} 42. Kxg4 {[%emt 0:00:00]} Rc1 {[%emt 0:02:40]} 43. Ba2 {[%emt 0:14:28]} Rc6 {[%emt 0:02:14]} 44. Rb2 {[%emt 0:00:00]} Ke6 {[%emt 0:13:51]} 45. f3 {[%emt 0:00:00]} Nc4 {[%emt 0:02:35]} 46. Re2 {[%emt 0:00:00]} b5 {[%emt 0:03:53]} 47. axb5 {[%emt 0:00:00]} axb5 {[%emt 0:00:03]} 48. e4 {[%emt 0:00:00]} Ra6 {[%emt 0:01:37]} 49. h5 {[%emt 0:01:25]} gxh5+ {[%emt 0:00:44]} 50. Kxh5 {[%emt 0:00:08]} Ra3 {[%emt 0:00:36]} 51. Kg4 {[%emt 0:00:26]} b4 {[%emt 0:05:44]} 52. exd5+ {[%emt 0:01:25]} Kxd5 {[%emt 0:00:05]} 53. Re5+ {[%emt 0:00:10]} Kxd4 {[%emt 0:00:39]} 54. Re4+ {[%emt 0:00:06]} Kc5 {[%emt 0:06:20]} 55. Bxc4 {[%emt 0:01:20]} b3 {[%emt 0:00:10]} 56. Bd3 {[%emt 0:00:59]} b2 {[%emt 0:01:06]} 57. Bb1 {[%emt 0:01:44]} h5+ {[%emt 0:04:56]} 58. Kg3 {[%emt 0:03:11]} Ra1 {[%emt 0:03:11]} 59. Re1 {[%emt 0:00:00]} Kd4 {[%emt 0:00:39]} 60. f4 {[%emt 0:00:00]} Kc3 {[%emt 0:03:07]} 61. f5 {[%emt 0:01:00]} Kd2 {[%emt 0:00:05]} 62. Rf1 {[%emt 0:00:07]} Ra3+ {[%emt 0:00:22]} 63. Kg2 {[%emt 0:01:32]} Rc3 {[%emt 0:04:03]} 64. f6 {[%emt 0:00:45]} Rc1 {[%emt 0:00:14]} 65. f7 {[%emt 0:00:08]} 1-0

[Event "94th Tradewise Hastings Congress"]
[Site "Hastings"]
[Date "2019.01.04"]
[Round "8"]
[White "Rice, Chris B"]
[Black "Willow, Jonah B"]
[Result "1-0"]
[ECO "A36"]
[WhiteElo "1963"]
[BlackElo "2218"]
[Annotator "ChessBase"]
[PlyCount "169"]
[EventDate "2018.12.28"]
[EventType "swiss"]
[EventCountry "ENG"]
[SourceTitle "playchess.com"]
[Source "ChessBase"]
[SourceQuality "1"]
[TimeControl "40/6000+30:3000+30"]

1. c4 {[%emt 0:06:00]} c5 {[%emt 0:00:00]} 2. g3 {[%emt 0:00:22]} g6 {[%emt 0:00:00]} 3. Bg2 {[%emt 0:00:10]} Bg7 {[%emt 0:00:00]} 4. Nc3 {[%emt 0:00:12]} Nc6 {[%emt 0:00:00]} 5. a3 {[%emt 0:00:20]} e6 {[%emt 0:00:00]} 6. b4 {[%emt 0:00:22]} Nxb4 {[%emt 0:00:04]} 7. axb4 {[%emt 0:00:09]} cxb4 {[%emt 0:00:03]} 8. d4 {[%emt 0:00:51]} bxc3 {[%emt 0:00:05]} 9. e3 {[%emt 0:00:17]} Ne7 {[%emt 0:00:58]} 10. Ne2 {[%emt 0:00:07]} d5 {[%emt 0:00:05]} 11. cxd5 {[%emt 0:00:05]} Nxd5 {[%emt 0:06:19]} 12. Ba3 {[%emt 0:00:14]} Bf8 {[%emt 0:03:06]} 13. Bxf8 {[%emt 0:00:07]} Kxf8 {[%emt 0:00:10]} 14. O-O {[%emt 0:01:12]} Kg7 {[%emt 0:03:57]} 15. Qb3 {[%emt 0:00:41]} b6 {[%emt 0:06:57]} 16. e4 {[%emt 0:00:21]} Nf6 {[%emt 0:06:23]} 17. e5 {[%emt 0:00:15]} Nd5 {[%emt 0:00:06]} 18. Nxc3 {[%emt 0:00:06]} Bb7 {[%emt 0:00:42]} 19. Nb5 {[%emt 0:00:15]} a5 {[%emt 0:15:06]} 20. Rfc1 {[%emt 0:37:23]} Rb8 {[%emt 0:05:56]} 21. Nd6 {[%emt 0:06:07]} Ba8 {[%emt 0:02:03]} 22. Rc4 {[%emt 0:04:09]} Qg5 {[%emt 0:04:25]} 23. h4 {[%emt 0:08:16]} Qe7 {[%emt 0:16:12]} 24. Rac1 {[%emt 0:02:33]} Rhd8 {[%emt 0:01:33]} 25. Qa3 {[%emt 0:00:21]} Kg8 {[%emt 0:11:01]} 26. Qb2 {[%emt 0:23:48]} Rxd6 {[%emt 0:07:33]} 27. exd6 {[%emt 0:00:16]} Qxd6 {[%emt 0:00:03]} 28. Rc8+ {[%emt 0:07:11]} Kg7 {[%emt 0:00:11]} 29. R8c4 {[%emt 0:03:18]} h6 {[%emt 0:05:38]} 30. Kh2 {[%emt 0:02:00]} Bb7 {[%emt 0:02:26]} 31. Kg1 {[%emt 0:00:21]} Kh7 {[%emt 0:00:15]} 32. Qb1 {[%emt 0:03:05]} Kg7 {[%emt 0:01:13]} 33. Qb2 {[%emt 0:00:35]} Ra8 {[%emt 0:00:51]} 34. Qb3 {[%emt 0:01:35]} Rd8 {[%emt 0:01:20]} 35. Qb2 {[%emt 0:00:39]} Rd7 {[%emt 0:00:38]} 36. Kh2 {[%emt 0:00:54]} Kh7 {[%emt 0:01:49]} 37. Qb1 {[%emt 0:00:36]} Nf6 {[%emt 0:02:54]} 38. Bxb7 {[%emt 0:01:39]} Rxb7 {[%emt 0:00:01]} 39. Qb5 {[%emt 0:01:06]} Qd5 {[%emt 0:00:46]} 40. Qb2 {[%emt 0:00:53]} Qd7 {[%emt 0:06:11]} 41. Rc6 {[%emt 0:12:38]} Nd5 {[%emt 0:03:06]} 42. h5 {[%emt 0:00:56]} gxh5 {[%emt 0:13:24]} 43. Qc2+ {[%emt 0:01:35]} Kg7 {[%emt 0:00:37]} 44. Qe2 {[%emt 0:01:15]} Nf6 {[%emt 0:04:40]} 45. Qe5 {[%emt 0:05:58]} Qd5 {[%emt 0:00:29]} 46. Qf4 {[%emt 0:01:39]} Qg5 {[%emt 0:05:59]} 47. Qf3 {[%emt 0:01:42]} Qg4 {[%emt 0:03:31]} 48. Qe3 {[%emt 0:04:24]} Qe4 {[%emt 0:00:53]} 49. Qd2 {[%emt 0:00:28]} h4 {[%emt 0:01:43]} 50. R6c3 {[%emt 0:05:24]} Rd7 {[%emt 0:08:09]} 51. Rd1 {[%emt 0:02:57]} Nd5 {[%emt 0:04:10]} 52. Rd3 {[%emt 0:01:14]} h3 {[%emt 0:05:26]} 53. Kxh3 {[%emt 0:00:41]} Nb4 {[%emt 0:01:13]} 54. Re3 {[%emt 0:04:15]} Qc2 {[%emt 0:00:36]} 55. Qe1 {[%emt 0:00:15]} Qf5+ {[%emt 0:00:35]} 56. g4 {[%emt 0:00:44]} Qf4 {[%emt 0:00:15]} 57. Re4 {[%emt 0:02:24]} Qf3+ {[%emt 0:00:12]} 58. Kh2 {[%emt 0:00:05]} Nc2 {[%emt 0:02:08]} 59. Qe2 {[%emt 0:00:58]} Qxe2 {[%emt 0:01:32]} 60. Rxe2 {[%emt 0:00:06]} Nxd4 {[%emt 0:00:31]} 61. Kg2 {[%emt 0:00:36]} Rd5 {[%emt 0:01:36]} 62. Rb2 {[%emt 0:01:10]} b5 {[%emt 0:00:26]} 63. Rbd2 {[%emt 0:01:07]} e5 {[%emt 0:00:10]} 64. f4 {[%emt 0:00:14]} f6 {[%emt 0:00:12]} 65. fxe5 {[%emt 0:01:02]} fxe5 {[%emt 0:00:02]} 66. Rf1 {[%emt 0:00:31]} Rd7 {[%emt 0:00:24]} 67. Re1 {[%emt 0:01:25]} Kf6 {[%emt 0:00:35]} 68. Rf2+ {[%emt 0:00:13]} Ke6 {[%emt 0:00:34]} 69. Ref1 {[%emt 0:01:34]} Kd5 {[%emt 0:00:55]} 70. Rf6 {[%emt 0:00:43]} e4 {[%emt 0:00:56]} 71. Rxh6 {[%emt 0:00:25]} e3 {[%emt 0:00:07]} 72. g5 {[%emt 0:01:04]} e2 {[%emt 0:00:04]} 73. Re1 {[%emt 0:00:14]} Rg7 {[%emt 0:01:55]} 74. g6 {[%emt 0:00:13]} Kc4 {[%emt 0:00:52]} 75. Kf2 {[%emt 0:00:23]} a4 {[%emt 0:00:29]} 76. Rg1 {[%emt 0:00:39]} Kd3 {[%emt 0:00:37]} 77. Rh7 {[%emt 0:01:26]} Rg8 {[%emt 0:00:10]} 78. Rd7 {[%emt 0:00:53]} Rf8+ {[%emt 0:01:17]} 79. Rf7 {[%emt 0:00:40]} Rg8 {[%emt 0:00:54]} 80. Rd7 {[%emt 0:00:10]} a3 {[%emt 0:00:30]} 81. Rg4 {[%emt 0:00:42]} a2 {[%emt 0:00:19]} 82. Rgxd4+ {[%emt 0:01:40]} Kc3 {[%emt 0:00:15]} 83. Rd3+ {[%emt 0:00:21]} Kb2 {[%emt 0:00:44]} 84. Rd2+ {[%emt 0:00:30]} Kb1 {[%emt 0:00:31]} 85. Rxe2 {[%emt 0:00:53]} 1-0

[Event "94th Tradewise Hastings Congress"]
[Site "Hastings"]
[Date "2019.01.04"]
[Round "8"]
[White "Heinsohn, Michael"]
[Black "Stoyanov, Viktor"]
[Result "0-1"]
[ECO "D85"]
[WhiteElo "1961"]
[BlackElo "2205"]
[Annotator "NA"]
[PlyCount "62"]
[EventDate "2018.12.28"]
[EventType "swiss"]
[EventCountry "ENG"]
[SourceTitle "playchess.com"]
[Source "ChessBase"]
[SourceQuality "1"]
[TimeControl "40/6000+30:3000+30"]

1. d4 {[%emt 0:00:00]} Nf6 {[%emt 0:00:00]} 2. c4 {[%emt 0:00:00]} g6 {[%emt 0:00:00]} 3. Nc3 {[%emt 0:00:00]} d5 {[%emt 0:00:00]} 4. cxd5 {[%emt 0:00:00]} Nxd5 {[%emt 0:00:00]} 5. e4 {[%emt 0:00:00]} Nxc3 {[%emt 0:00:00]} 6. bxc3 {[%emt 0:00:00]} Bg7 {[%emt 0:00:03]} 7. Bg5 {[%emt 0:00:01]} c5 {[%emt 0:00:06]} 8. Rc1 {[%emt 0:00:09]} O-O {[%emt 0:02:27]} 9. Nf3 {[%emt 0:00:26]} Bg4 {[%emt 0:01:35]} 10. d5 {[%emt 0:00:12]} Qd6 {[%emt 0:03:25]} 11. Be2 {[%emt 0:00:08]} Nd7 {[%emt 0:01:51]} 12. O-O {[%emt 0:00:32]} e6 {[%emt 0:08:08]} 13. dxe6 {[%emt 0:27:39]} Qxd1 {[%emt 0:04:07]} 14. exf7+ {[%emt 0:00:19]} Rxf7 {[%emt 0:00:11]} 15. Rfxd1 {[%emt 0:00:24]} Be6 {[%emt 0:03:09]} 16. Rd2 {[%emt 0:03:47]} h6 {[%emt 0:06:18]} 17. Be3 {[%emt 0:00:57]} g5 {[%emt 0:00:12]} 18. h3 {[%emt 0:06:26]} Rc8 {[%emt 0:02:39]} 19. Rd6 {[%emt 0:06:41]} Bxa2 {[%emt 0:04:08]} 20. Ra1 {[%emt 0:00:20]} Bb3 {[%emt 0:00:10]} 21. Rxa7 {[%emt 0:00:55]} Nf6 {[%emt 0:01:21]} 22. e5 {[%emt 0:01:10]} Ne4 {[%emt 0:12:49]} 23. Rb6 {[%emt 0:08:33]} Nxc3 {[%emt 0:00:34]} 24. Bd3 {[%emt 0:11:46]} Bd5 {[%emt 0:04:19]} 25. Rd6 {[%emt 0:13:34]} c4 {[%emt 0:18:33]} 26. Bg6 {[%emt 0:00:59]} Re7 {[%emt 0:00:28]} 27. Bf5 {[%emt 0:12:22]} Rf8 {[%emt 0:01:44]} 28. Rxd5 {[%emt 0:05:39]} Nxd5 {[%emt 0:00:07]} 29. Be4 {[%emt 0:05:34]} Nxe3 {[%emt 0:00:08]} 30. fxe3 {[%emt 0:00:22]} c3 {[%emt 0:02:02]} 31. e6 {[%emt 0:04:23]} Kh8 {[%emt 0:01:05]} 0-1

[Event "94th Tradewise Hastings Congress"]
[Site "Hastings"]
[Date "2019.01.04"]
[Round "8"]
[White "Byrn, Carsten"]
[Black "Groffen, Hans"]
[Result "1/2-1/2"]
[ECO "A27"]
[WhiteElo "1959"]
[BlackElo "2120"]
[Annotator "NA"]
[PlyCount "71"]
[EventDate "2018.12.28"]
[EventType "swiss"]
[EventCountry "ENG"]
[SourceTitle "playchess.com"]
[Source "ChessBase"]
[SourceQuality "1"]
[TimeControl "40/6000+30:3000+30"]

1. c4 {[%emt 0:00:00]} e5 {[%emt 0:00:00]} 2. g3 {[%emt 0:00:00]} Nc6 {[%emt 0:00:00]} 3. Nc3 {[%emt 0:00:00]} f5 {[%emt 0:00:00]} 4. Nf3 {[%emt 0:00:36]} Nf6 {[%emt 0:00:20]} 5. d4 {[%emt 0:00:20]} e4 {[%emt 0:00:07]} 6. Nh4 {[%emt 0:00:23]} d6 {[%emt 0:00:24]} 7. Bg5 {[%emt 0:07:52]} Be7 {[%emt 0:01:27]} 8. e3 {[%emt 0:02:28]} O-O {[%emt 0:01:01]} 9. Ng2 {[%emt 0:01:49]} h6 {[%emt 0:00:57]} 10. Bxf6 {[%emt 0:00:12]} Bxf6 {[%emt 0:00:07]} 11. h4 {[%emt 0:00:22]} Ne7 {[%emt 0:02:23]} 12. Nf4 {[%emt 0:00:51]} c6 {[%emt 0:01:52]} 13. Qb3 {[%emt 0:04:13]} Qe8 {[%emt 0:10:38]} 14. h5 {[%emt 0:01:44]} Qf7 {[%emt 0:05:18]} 15. Be2 {[%emt 0:00:58]} Bg5 {[%emt 0:06:14]} 16. O-O-O {[%emt 0:02:52]} a6 {[%emt 0:01:55]} 17. Kb1 {[%emt 0:00:29]} b5 {[%emt 0:02:05]} 18. cxb5 {[%emt 0:06:10]} Qxb3 {[%emt 0:00:51]} 19. axb3 {[%emt 0:00:04]} axb5 {[%emt 0:00:16]} 20. b4 {[%emt 0:03:37]} d5 {[%emt 0:00:54]} 21. Kc2 {[%emt 0:04:29]} Bd7 {[%emt 0:00:20]} 22. Ra1 {[%emt 0:00:25]} Rfb8 {[%emt 0:01:07]} 23. Ra3 {[%emt 0:01:56]} Rxa3 {[%emt 0:02:26]} 24. bxa3 {[%emt 0:00:02]} Nc8 {[%emt 0:02:05]} 25. Ra1 {[%emt 0:06:42]} Be7 {[%emt 0:00:42]} 26. Nb1 {[%emt 0:04:45]} Ra8 {[%emt 0:01:38]} 27. Kb2 {[%emt 0:00:56]} Nb6 {[%emt 0:01:29]} 28. Nc3 {[%emt 0:05:26]} Kf7 {[%emt 0:02:29]} 29. Rg1 {[%emt 0:02:50]} Bd6 {[%emt 0:01:32]} 30. Ra1 {[%emt 0:08:52]} Kf6 {[%emt 0:00:34]} 31. Kb3 {[%emt 0:06:00]} Be8 {[%emt 0:05:38]} 32. a4 {[%emt 0:07:38]} bxa4+ {[%emt 0:18:28]} 33. Nxa4 {[%emt 0:00:02]} c5 34. Nxb6 {[%emt 0:00:03]} Rxa1 {[%emt 0:00:02]} 35. Nfxd5+ {[%emt 0:00:03]} Ke6 {[%emt 0:00:03]} 36. dxc5 {[%emt 0:21:01] Kf6 [%clk 00:56:32]} 1/2-1/2

[Event "94th Tradewise Hastings Congress"]
[Site "Hastings"]
[Date "2019.01.04"]
[Round "8"]
[White "Larsen, Andreas"]
[Black "Sumit, Kumar"]
[Result "0-1"]
[ECO "C47"]
[WhiteElo "1933"]
[BlackElo "2179"]
[Annotator "NA"]
[PlyCount "48"]
[EventDate "2018.12.28"]
[EventType "swiss"]
[EventCountry "ENG"]
[SourceTitle "playchess.com"]
[Source "ChessBase"]
[SourceQuality "1"]
[TimeControl "40/6000+30:3000+30"]

1. e4 {[%emt 0:00:00]} e5 {[%emt 0:00:00]} 2. Nf3 {[%emt 0:00:00]} Nc6 {[%emt 0:00:00]} 3. Nc3 {[%emt 0:00:00]} Nf6 {[%emt 0:00:00]} 4. Nxe5 {[%emt 0:00:00]} Nxe5 {[%emt 0:00:26]} 5. d4 {[%emt 0:00:00]} Ng6 {[%emt 0:00:13]} 6. e5 {[%emt 0:00:28]} Ng8 {[%emt 0:00:09]} 7. Bc4 {[%emt 0:00:25]} c6 {[%emt 0:01:22]} 8. Qe2 {[%emt 0:01:20]} b5 {[%emt 0:04:10]} 9. Bb3 {[%emt 0:01:01]} Bb4 {[%emt 0:00:22]} 10. h4 {[%emt 0:06:59]} Nxh4 {[%emt 0:31:05]} 11. Kf1 {[%emt 0:11:49]} Nf5 {[%emt 0:06:01]} 12. Nxb5 {[%emt 0:37:10]} cxb5 {[%emt 0:04:24]} 13. Qe4 {[%emt 0:01:18]} Rb8 {[%emt 0:01:53]} 14. Qxf5 {[%emt 0:04:45]} d5 {[%emt 0:00:36]} 15. Qd3 {[%emt 0:02:32]} g6 {[%emt 0:04:01]} 16. Bf4 {[%emt 0:06:10]} Be6 {[%emt 0:01:21]} 17. a4 {[%emt 0:00:51]} bxa4 {[%emt 0:03:33]} 18. Bxa4+ {[%emt 0:00:47]} Kf8 {[%emt 0:00:35]} 19. Qe3 {[%emt 0:05:12]} Kg7 {[%emt 0:04:27]} 20. Bb3 {[%emt 0:04:41]} a5 {[%emt 0:01:20]} 21. Bg5 {[%emt 0:01:19]} Be7 {[%emt 0:00:10]} 22. Bf6+ {[%emt 0:06:21]} Nxf6 {[%emt 0:00:47]} 23. exf6+ {[%emt 0:00:36]} Bxf6 {[%emt 0:00:34]} 24. Re1 {[%emt 0:01:02]} h5 {[%emt 0:00:46]} 0-1

[Event "94th Tradewise Hastings Congress"]
[Site "Hastings"]
[Date "2019.01.04"]
[Round "8"]
[White "Salmons, Calum"]
[Black "Rayner, Francis"]
[Result "1-0"]
[ECO "B25"]
[WhiteElo "1905"]
[BlackElo "2048"]
[Annotator "NA"]
[PlyCount "134"]
[EventDate "2018.12.28"]
[EventType "swiss"]
[EventCountry "ENG"]
[SourceTitle "playchess.com"]
[Source "ChessBase"]
[SourceQuality "1"]
[TimeControl "40/6000+30:3000+30"]

1. e4 {[%emt 0:00:00]} c5 {[%emt 0:00:00]} 2. Nc3 {[%emt 0:00:16]} Nc6 {[%emt 0:01:00]} 3. f4 {[%emt 0:00:00]} g6 {[%emt 0:01:48]} 4. Nf3 {[%emt 0:00:00]} Bg7 {[%emt 0:00:04]} 5. d3 {[%emt 0:00:06]} d6 {[%emt 0:03:24]} 6. g3 {[%emt 0:01:11]} e6 {[%emt 0:04:15]} 7. Be3 {[%emt 0:04:42]} Nge7 {[%emt 0:05:16]} 8. Bg2 {[%emt 0:04:34]} O-O {[%emt 0:04:27]} 9. O-O {[%emt 0:01:36]} b6 {[%emt 0:07:12]} 10. d4 {[%emt 0:03:57]} Ba6 {[%emt 0:01:45]} 11. Re1 {[%emt 0:02:13]} cxd4 {[%emt 0:21:06]} 12. Nxd4 {[%emt 0:00:36]} Qd7 {[%emt 0:02:50]} 13. Qd2 {[%emt 0:08:08]} Na5 {[%emt 0:01:56]} 14. b3 {[%emt 0:05:07]} Rac8 {[%emt 0:01:46]} 15. Rad1 {[%emt 0:07:38]} Rc7 {[%emt 0:05:23]} 16. Bf1 {[%emt 0:11:44]} Bxf1 {[%emt 0:01:37]} 17. Rxf1 {[%emt 0:00:24]} Rfc8 {[%emt 0:02:10]} 18. Ncb5 {[%emt 0:10:12]} Rc5 {[%emt 0:10:29]} 19. c4 {[%emt 0:04:34]} a6 {[%emt 0:02:22]} 20. Na3 {[%emt 0:05:04]} Qb7 {[%emt 0:04:22]} 21. f5 {[%emt 0:10:00]} exf5 {[%emt 0:03:09]} 22. exf5 {[%emt 0:01:29]} Nxf5 {[%emt 0:03:29]} 23. Nxf5 {[%emt 0:01:20]} Rxf5 {[%emt 0:00:08]} 24. Rxf5 {[%emt 0:00:57]} gxf5 {[%emt 0:00:02]} 25. Qxd6 {[%emt 0:02:13]} Nc6 {[%emt 0:02:38]} 26. Nc2 {[%emt 0:04:37]} Ne5 {[%emt 0:02:27]} 27. Qxb6 {[%emt 0:04:40]} Nf3+ {[%emt 0:03:54]} 28. Kf2 {[%emt 0:00:37]} Qa8 {[%emt 0:01:29]} 29. h3 {[%emt 0:04:16]} Qe4 {[%emt 0:02:46]} 30. Rd8+ {[%emt 0:02:27]} Rxd8 {[%emt 0:00:06]} 31. Qxd8+ {[%emt 0:00:08]} Bf8 {[%emt 0:00:03]} 32. Qd1 {[%emt 0:00:26]} Ne5 {[%emt 0:00:39]} 33. Ne1 {[%emt 0:02:04]} Bb4 {[%emt 0:01:33]} 34. Nf3 {[%emt 0:04:53]} Nd3+ {[%emt 0:03:06]} 35. Ke2 {[%emt 0:00:22]} Ne5 {[%emt 0:02:39]} 36. Qd8+ {[%emt 0:03:28]} Bf8 {[%emt 0:00:21]} 37. Nxe5 {[%emt 0:01:02]} Qxe5 {[%emt 0:00:05]} 38. Qg5+ {[%emt 0:00:44]} Bg7 {[%emt 0:01:38]} 39. Qf4 {[%emt 0:00:01]} Qb2+ {[%emt 0:00:56]} 40. Kf3 {[%emt 0:00:19]} Qb1 {[%emt 0:01:43]} 41. Bc5 {[%emt 0:08:32]} Qf1+ {[%emt 0:03:03]} 42. Ke3 {[%emt 0:01:22]} Qe1+ {[%emt 0:00:22]} 43. Kd3 {[%emt 0:01:44]} Qd1+ {[%emt 0:02:17]} 44. Qd2 {[%emt 0:07:03]} Qf3+ {[%emt 0:02:33]} 45. Kc2 {[%emt 0:01:24]} Qe4+ {[%emt 0:01:48]} 46. Qd3 {[%emt 0:01:20]} Qg2+ {[%emt 0:00:10]} 47. Kd1 {[%emt 0:00:23]} Qh1+ {[%emt 0:00:54]} 48. Ke2 {[%emt 0:00:44]} Qg2+ {[%emt 0:01:15]} 49. Ke1 {[%emt 0:00:26]} Qh1+ {[%emt 0:00:57]} 50. Ke2 {[%emt 0:01:39]} Qg2+ {[%emt 0:00:20]} 51. Bf2 {[%emt 0:00:24]} Qxh3 {[%emt 0:02:18]} 52. Qd8+ {[%emt 0:03:13]} Bf8 {[%emt 0:00:04]} 53. Bc5 {[%emt 0:10:06]} Qg2+ {[%emt 0:03:26]} 54. Kd1 {[%emt 0:00:48]} Qf1+ {[%emt 0:01:07]} 55. Kd2 {[%emt 0:00:38]} Qg2+ {[%emt 0:01:26]} 56. Kc1 {[%emt 0:00:42]} Qh1+ {[%emt 0:04:25]} 57. Kb2 {[%emt 0:00:32]} Qh2+ {[%emt 0:02:06]} 58. Ka3 {[%emt 0:00:18]} Qh6 {[%emt 0:00:07]} 59. Kb4 {[%emt 0:02:09]} Qg7 {[%emt 0:04:17]} 60. Qxf8+ {[%emt 0:00:40]} Qxf8 {[%emt 0:00:05]} 61. Bxf8 {[%emt 0:00:09]} Kxf8 {[%emt 0:00:03]} 62. Kc3 {[%emt 0:00:16]} Ke7 {[%emt 0:05:36]} 63. Kd4 {[%emt 0:01:08]} Kd6 {[%emt 0:00:29]} 64. b4 {[%emt 0:00:31]} h5 {[%emt 0:01:09]} 65. Ke3 {[%emt 0:00:56]} Ke5 {[%emt 0:02:32]} 66. b5 {[%emt 0:00:31]} axb5 {[%emt 0:00:34]} 67. cxb5 {[%emt 0:00:22]} Kd5 {[%emt 0:03:15]} 1-0

[Event "94th Tradewise Hastings Congress"]
[Site "Hastings"]
[Date "2019.01.04"]
[Round "8"]
[White "Chapman, Matt"]
[Black "Rolvag, Mikael"]
[Result "1/2-1/2"]
[ECO "C09"]
[WhiteElo "1902"]
[BlackElo "2107"]
[Annotator "NA"]
[PlyCount "57"]
[EventDate "2018.12.28"]
[EventType "swiss"]
[EventCountry "ENG"]
[SourceTitle "playchess.com"]
[Source "ChessBase"]
[SourceQuality "1"]
[TimeControl "40/6000+30:3000+30"]

1. e4 {[%emt 0:00:00]} e6 {[%emt 0:00:00]} 2. d4 {[%emt 0:00:00]} d5 {[%emt 0:00:00]} 3. Nd2 {[%emt 0:00:00]} c5 {[%emt 0:00:00]} 4. exd5 {[%emt 0:00:09]} exd5 {[%emt 0:00:00]} 5. Bb5+ {[%emt 0:01:31]} Nc6 {[%emt 0:01:06]} 6. Ngf3 {[%emt 0:01:20]} Bd6 {[%emt 0:00:15]} 7. dxc5 {[%emt 0:02:34]} Bxc5 {[%emt 0:01:17]} 8. O-O {[%emt 0:00:43]} Nge7 {[%emt 0:00:06]} 9. c3 {[%emt 0:03:02]} O-O {[%emt 0:00:36]} 10. Nb3 {[%emt 0:03:12]} Bd6 {[%emt 0:00:09]} 11. Nbd4 {[%emt 0:00:40]} Bg4 {[%emt 0:03:38]} 12. Be2 {[%emt 0:07:51]} a6 {[%emt 0:12:33]} 13. Be3 {[%emt 0:02:59]} Qc7 {[%emt 0:01:13]} 14. h3 {[%emt 0:02:19]} Bd7 {[%emt 0:06:01]} 15. Qd2 {[%emt 0:01:21]} Rfd8 {[%emt 0:03:03]} 16. Rfd1 {[%emt 0:02:17]} Na5 {[%emt 0:04:26]} 17. b3 {[%emt 0:05:22]} Rac8 {[%emt 0:02:35]} 18. Rac1 {[%emt 0:01:43]} b5 {[%emt 0:04:33]} 19. Bd3 {[%emt 0:06:25]} Ng6 {[%emt 0:01:28]} 20. Ne2 {[%emt 0:10:38]} Be7 {[%emt 0:04:59]} 21. Nf4 {[%emt 0:05:27]} Nxf4 {[%emt 0:03:24]} 22. Bxf4 {[%emt 0:00:12]} Qb6 {[%emt 0:00:02]} 23. Be3 {[%emt 0:03:25]} Qc7 {[%emt 0:00:22]} 24. Bf4 {[%emt 0:00:49]} Qb6 {[%emt 0:00:08]} 25. Be3 {[%emt 0:02:14]} Qc7 {[%emt 0:00:15]} 26. Nd4 {[%emt 0:01:38]} g6 {[%emt 0:03:25]} 27. Bf4 {[%emt 0:02:23]} Qb6 {[%emt 0:00:46]} 28. Be5 {[%emt 0:01:05]} Re8 {[%emt 0:05:47]} 29. Nf3 {[%emt 0:05:53]} 1/2-1/2